Cogmind - Beta 13 @@@ ROGUE MODE // 2024.06.07 @ 20:07:54 Player: Shippujinlai Result: Self-destructed Performance ------------- Evolutions (1) 500 Regions Visited (2) 400 Robots Destroyed (23) 115 Value Destroyed (540) 540 Prototype IDs (2) 40 Alien Tech Used (0) 0 Bonus (0) 0 TOTAL SCORE: 1595 Bonus ------- None Cogmind --------- Core Integrity 179/400 Matter 290/300 Energy 100/100 System Corruption 0% Temperature Cool (0) Movement Core (50) Location -9/Materials Parts ------- > --- POWER (1) -------- (None) > --- PROPULSION (2) --- (None) > --- UTILITY (4) ------ Sensor Array Signal Interpreter > --- WEAPON (2) ------- (None) > --- INVENTORY (5) ---- Ion Engine Machine Analyzer Hacking Suite Peak State ------------ > --- POWER ------------ Light Ion Engine > --- PROPULSION ------- Light Treads Light Treads > --- UTILITY ---------- Small Storage Unit Signal Interpreter > --- WEAPON ----------- Assault Rifle Assault Rifle > --- INVENTORY -------- Ion Engine [Rating: 7] Favorites ----------- Power Light Ion Engine Engine Light Ion Engine Propulsion Light Treads Treads Light Treads Wheel Wheel Utility Signal Interpreter Device Structural Scanner Storage Small Storage Unit Processor Signal Interpreter Weapon Assault Rifle Energy Gun Small Laser Ballistic Gun Assault Rifle Impact Weapon Flail Build | -11 -10 -9 ------- Run | Yrd Mat Mat Slots Evolved 2 | . . 2 Power . | . . . Propulsion . | . . . Utility 2 | . . 2 Weapon . | . . . Parts Attached 18 | 6 8 4 Power 2 | 1 1 . Engine 2 | 1 1 . Core . | . . . Reactor . | . . . Propulsion 4 | 2 1 1 Treads 3 | 2 1 . Leg . | . . . Wheel 1 | . . 1 Hover . | . . . Flight . | . . . Utility 5 | 1 2 2 Device 2 | . 1 1 Storage 1 | 1 . . Processor 2 | . 1 1 Hackware . | . . . Protection . | . . . Artifact . | . . . Weapon 7 | 2 4 1 Energy Gun 2 | . 2 . Energy Cannon . | . . . Ballistic Gun 4 | 2 2 . Ballistic Cannon . | . . . Launcher . | . . . Special Weapon . | . . . Impact Weapon 1 | . . 1 Slashing Weapon . | . . . Piercing Weapon . | . . . Special Melee Weapon . | . . . Unidentified Prototypes . | . . . Parts Lost 10 | . 5 5 Power 2 | . 1 1 Propulsion 4 | . 2 2 Utility 1 | . . 1 Weapon 3 | . 2 1 Highest Loss Streak 3 | . 3 3 To Critical Strikes . | . . . Average Slot Usage (%) 87 | . 94 47 Engine 12 | . 13 5 Treads 21 | . 24 5 Device 4 | . 4 7 Storage 8 | . 9 . Processor 12 | . 12 11 Energy Gun 7 | . 8 4 Ballistic Gun 16 | . 19 . Impact Weapon 1 | . . 8 Naked Turns . | . . . Heaviest Build 12 | 12 12 10 Greatest Support 40 | 40 40 20 Greatest Overweight (x) . | . . . Average Overweight (x) . | . . . Largest Inventory Capacity 8 | 8 8 5 Average Capacity 6 | 7 7 5 Most Carried 4 | 1 4 4 Average Carried 2 | . 2 3 Final Capacity 8 | 8 5 5 Final Carried 4 | 1 4 3 Class Distribution -------------------- 69% | Mutant 30% | Scavenger-Mutant Dominant Class ---------------- Mutant | -10/Materials Mutant | -9/Materials Resources | -11 -10 -9 ----------- Run | Yrd Mat Mat Matter Collected 599 | 290 289 20 Remotely . | . . . Salvage Created 783 | 51 578 154 Parts 36 | 3 33 . Haulers Intercepted 2 | . 2 . Recyclers Shooed . | . . . Parts Field Recycled . | . . . Retrieved Matter . | . . . Parts Self-Destructed . | . . . Prevented . | . . . Kills | -11 -10 -9 ------- Run | Yrd Mat Mat Combat Hostiles Destroyed 15 | . 9 6 Melee 1 | . . 1 Guns 8 | . 8 . Classes Destroyed 9 | 1 6 2 Builder 1 | . 1 . Hauler 2 | . 2 . Recycler 1 | 1 . . Mechanic 1 | . 1 . Operator 1 | . 1 . Watcher 2 | . 1 1 Swarmer 4 | . . 4 Grunt 10 | . 9 1 Sentry 1 | . . 1 Best Kill Streak 4 | 1 3 4 Combat Bots Only 4 | . 3 4 Max Kills in Single Turn 1 | 1 1 1 Gunslinging . | . . . Exploded . | . . . Melee 1 | . . 1 Uniques/NPCs Destroyed . | . . . Combat | -11 -10 -9 -------- Run | Yrd Mat Mat Hostile Shots Fired 136 | . 83 53 Missed 26 | . 13 13 Damage Taken 1398 | . 932 466 Core 433 | . 212 221 Absorbed by Shields . | . . . Core Remaining (%) 57 | 100 15 . Volleys Fired 76 | 5 71 . Largest 2 | 2 2 . Hottest 105 | 40 105 . Shots Fired 145 | 10 135 . Gun 145 | 10 135 . Cannon . | . . . Launcher . | . . . Special . | . . . Kinetic 115 | 10 105 . Thermal 30 | . 30 . Explosive . | . . . Electromagnetic . | . . . Robot Hit Streak 32 | 3 32 . Robot Miss Streak 4 | 1 4 . Penetration Max . | . . . Secondary Targets . | . . . Shots Hit Robots 121 | 7 97 17 Core Hits 42 | 2 40 . Critical Kills . | . . . Critical Parts Destroyed 3 | . . 3 Critical Strikes 3 | . . 3 Smash 3 | . . 3 Melee Attacks 25 | . . 25 Impact 25 | . . 25 Slashing . | . . . Piercing . | . . . Sneak Attacks . | . . . Combat Hostiles . | . . . Follow-up Attacks . | . . . Damage Inflicted 1656 | 79 961 616 Guns 1029 | 79 950 . Cannons . | . . . Explosions . | . . . Melee 616 | . . 616 Ramming 11 | . 11 . Kinetic 760 | 79 681 . Thermal 269 | . 269 . Explosive . | . . . Electromagnetic . | . . . Impact 616 | . . 616 Slashing . | . . . Piercing . | . . . Highest Corruption 3 | . 3 . Average Corruption 2 | . 2 . Corruption Purged . | . . . Corruption Blocked . | . . . Effects 9 | . 9 . Message Errors 2 | . 2 . Matter Fused 2 | . 2 . Heat Flow Errors 2 | . 2 . Energy Discharges 1 | . 1 . Data Loss (major) 2 | . 2 . Overload Shots . | . . . Overflow Damage 243 | . . 243 Projectiles . | . . . Explosions . | . . . Melee 243 | . . 243 Knockbacks 2 | . . 2 Impact 2 | . . 2 Kinetic . | . . . Secondary . | . . . Self-Inflicted Damage . | . . . Shots . | . . . Rammed 2 | . 2 . Targets Rammed 2 | . 2 . Kicked . | . . . Crushed . | . . . Highest Temperature 507 | . 507 . Average Temperature 133 | . 133 . Received Heat Transfer 714 | . 582 132 Effects 8 | . 8 . Shutdowns 2 | . 2 . Energy Bleed 1 | . 1 . Interference 1 | . 1 . Matter Decay 1 | . 1 . Short Circuit 2 | . 2 . Damage (minor) 1 | . 1 . Siege Activations . | . . . Robots Corrupted . | . . . Combat Hostiles . | . . . Parts Fried 8 | . . 8 Impact Corruptions 13 | . . 13 Robots Melted 1 | . 1 . Combat Hostiles 1 | . 1 . Parts Melted 1 | . 1 . Heat Transferred 634 | . 634 . Parts Sabotaged . | . . . Parts Stolen . | . . . Parts Stripped . | . . . Power Chain Reactions . | . . . Alert | -11 -10 -9 ------- Run | Yrd Mat Mat Peak Influence 192 | 5 113 192 Initial 3 | . 3 . Average 32 | 1 29 69 Maximum Alert Level . | . . . Low Security (%) 100 | 100 100 100 Level 1 . | . . . Level 2 . | . . . Level 3 . | . . . Level 4 . | . . . Level 5 . | . . . High Security . | . . . Max Security . | . . . Squads Dispatched 4 | . 3 1 Investigation 1 | . 1 . Extermination . | . . . Reinforcement 3 | . 2 1 Assault . | . . . Garrison . | . . . Intercept . | . . . Searches Triggered . | . . . Construction Impeded . | . . . Haulers Reinforced . | . . . Active Scanning Responses . | . . . Cargo Convoy Interrupts . | . . . Stealth | -11 -10 -9 --------- Run | Yrd Mat Mat Distress Signals 1 | . 1 . Communications Jammed . | . . . Distress Signals . | . . . Times Spotted 29 | . 15 14 Peak Tracking Total 5 | . 4 5 Tactical Retreats 2 | . . 2 Traps | -11 -10 -9 ------- Run | Yrd Mat Mat Traps Triggered 1 | . 1 . Indirectly . | . . . Trap Hack Attempts . | . . . Triggered . | . . . Disarmed . | . . . Reprogrammed . | . . . Reused . | . . . Traps Extracted . | . . . Installed . | . . . Triggered . | . . . Machines | -11 -10 -9 ---------- Run | Yrd Mat Mat Machines Disabled . | . . . Max in Single Turn . | . . . Machines Repaired . | . . . Machines Dismantled . | . . . Machines Sabotaged . | . . . Overloaded Fab Kills . | . . . Hacking | -11 -10 -9 --------- Run | Yrd Mat Mat Machines Accessed 5 | . 5 . Terminals 4 | . 4 . Fabricators . | . . . Repair Stations . | . . . Recycling Units 1 | . 1 . Scanalyzers . | . . . Garrison Access . | . . . Total Hacks 16 | . 16 . Successful 11 | . 11 . Failed 5 | . 5 . Catastrophic . | . . . Database Lockouts . | . . . Manual 10 | . 10 . Terminals 14 | . 14 . Fabricators . | . . . Repair Stations . | . . . Recycling Units 2 | . 2 . Scanalyzers . | . . . Garrison Access . | . . . Terminal Hacks 5 | . 5 . Robot Schematic 1 | . 1 . Robot Analysis 1 | . 1 . Prototype ID Bank 1 | . 1 . Hauler Manifests 1 | . 1 . Registered Components 1 | . 1 . Fabricator Hacks . | . . . Repair Station Hacks . | . . . Recycling Unit Hacks 1 | . 1 . Retrieve Components 1 | . 1 . Scanalyzer . | . . . Garrison Access Hacks . | . . . Unauthorized Hacks 5 | . 5 . Terminals 4 | . 4 . Botnet 4 | . 4 . Fabricators . | . . . Repair Stations . | . . . Recycling Units 1 | . 1 . Recyclers 1 | . 1 . Scanalyzers . | . . . Garrison Access . | . . . Data Cores Recovered 1 | . 1 . Used 1 | . 1 . Hacking Detections 4 | . 4 . Full Trace Events 2 | . 2 . Feedback Events 1 | . 1 . Corruption 1 | . 1 . Feedback Blocked . | . . . Robot Schematics Acquired 1 | . 1 . Robots Built . | . . . Authchips . | . . . Time . | . . . Total Robot Build Rating . | . . . Part Schematics Acquired . | . . . Parts Built . | . . . Authchips . | . . . Time . | . . . Total Part Build Rating . | . . . Parts Repaired . | . . . Time . | . . . Parts Recycled . | . . . Recycled Matter . | . . . Retrieved Matter . | . . . Retrieved Components 1 | . 1 . Parts Scanalyzed . | . . . Part Schematics Acquired . | . . . Parts Damaged . | . . . Bothacking | -11 -10 -9 ------------ Run | Yrd Mat Mat Used RIF Installer . | . . . Robots Hacked . | . . . Non-combat . | . . . Combat . | . . . Robot Hacks Applied . | . . . Relay Couplers Released . | . . . Fabnet Peak Effective % . | . . . Robots Rewired . | . . . Allies Hacked . | . . . Hacks Repelled . | . . . Allies | -11 -10 -9 -------- Run | Yrd Mat Mat Total Allies . | . . . Largest Group . | . . . Highest-Rated Group . | . . . Highest-Rated Ally . | . . . Total Orders . | . . . Ally Attacks . | . . . Total Damage . | . . . Kills . | . . . Allies Corrupted . | . . . Allies Melted . | . . . Intel | -11 -10 -9 ------- Run | Yrd Mat Mat Robot Analysis Total 1 | . 1 . Derelict Logs Recovered . | . . . Drone Launches . | . . . Drone Recoveries . | . . . Exploration | -11 -10 -9 ------------- Run | Yrd Mat Mat Turns Passed 1582 | 115 1272 195 Spaces Moved 805 | 60 662 83 Core 8 | 4 . 4 Treads 768 | 56 662 50 Legs . | . . . Wheels 29 | . . 29 Hover . | . . . Flight . | . . . Fastest Speed 50 | 50 160 50 Average Speed 156 | 152 160 126 Slowest Speed 160 | 160 160 160 Overloaded Moves . | . . . Propulsion Burnouts . | . . . Robots Hopped . | . . . Cave-ins Triggered . | . . . Exploration Rate (%) 29 | 4 67 17 Regions Visited 2 Branch Regions . Pre-discovered Areas . | . . . Known Exits Taken 1 | . 1 . Unknown Exits Taken 1 | 1 . . Scrap Searched . | . . . Spaces Dug . | . . . Terrain Destroyed . | . . . Melee . | . . . Projectile . | . . . AOE . | . . . Terrain Rammed . | . . . Walls Destroyed . | . . . Machines Disabled . | . . . Actions | -11 -10 -9 --------- Run | Yrd Mat Mat Total 958 | 71 752 135 Wait 24 | . 4 20 Move 803 | 59 661 83 Hop . | . . . Pick Up 4 | 1 3 . Fast Attach 17 | 6 8 3 Attach 1 | . . 1 Detach . | . . . Swap . | . . . Drop 6 | . 3 3 Fire 76 | 5 71 . Melee 25 | . . 25 Ram . | . . . Kick . | . . . Crush 2 | . 2 . Escape Stasis . | . . . Rewire . | . . . Trap . | . . . Miscellaneous . | . . . Route ------- -11/Scrapyard -10/Materials (discovered 3 exits: *Mat / *Min / *Sub) -9/Materials History --------- Turn | Location | Event 10 | -11/Scrapyard | Discovered new exit (range 14) 116 | -11/Scrapyard | Entered Materials 144 | -10/Materials | Discovered new exit (range 12) 236 | -10/Materials | Identified exit to Mines 314 | -10/Materials | Build established: Mutant 646 | -10/Materials | Discovered new exit (range 10) 658 | -10/Materials | Identified exit to Materials 748 | -10/Materials | Discovered new exit (range 7) 777 | -10/Materials | Identified exit to Subcaves 918 | -10/Materials | Core integrity fell below 50% 961 | -10/Materials | Lost 3 parts (1p1n1w) 1202 | -10/Materials | Core integrity fell below 20% 1243 | -10/Materials | Build established: Scavenger-Mutant 1388 | -10/Materials | Entered another Materials area 1388 | -9/Materials | Evolved 2 slots: Utility x2 1531 | -9/Materials | Lost 3 parts (1p1n1u) 1580 | -9/Materials | Core integrity fell below 50% 1583 | -9/Materials | Self-destructed Last Messages --------------- 01511_ K-01 Serf collects debris. 01533_ M-13 Machinist resupplies. 01539_ Destroyed Aluminum Leg. 01539_ G-34 Mercenary system corrupted by crushing effect. 01540_ G-34 Mercenary system terminally corrupted. 01552_ W-16 Scout suffers critical hit (Smash). 01552_ Destroyed Signal Interpreter. 01552_ W-16 Scout system corrupted by crushing effect. 01552_ Visual Processing Unit fried. 01552_ Hover Unit fried. 01552_ W-16 Scout destroyed. 01557_ K-01 Serf collects debris. 01559_ Acquired Signal Interpreter. 01560_ Discarded Broken Signal Interpreter. 01565_ Wheel destroyed. 01578_ Destroyed Flight Unit. 01578_ S-10 Pest system corrupted by crushing effect. 01578_ S-10 Pest knocked back. 01579_ S-10 Pest system terminally corrupted. 01581_ Flail destroyed. Map ----- +----------------------------------------------------+ | ?????######### # """ #??????????????????????? | | ? ! # """ #??????????????????????? | | ? + """ #??????????????????????? | | ???"" """ # % #??????????????#???????? | | ???""? """ | # %#######?????? ##??????? | | ???????""" # " " # ##### #??????? | | ?????? ]! # "R" # #??????? | | ????? ]! # """%+% +??????? | | ???? ! ##########% #??????? | | ???? ##### #??????? | | ???? #???## ########??????????? | | ????##+###########????# # #??????????? | | ??????????????????????# + #??????????? | | ??????????????????????# # #??????????? | | ??????????????????????# =]] # !![#??????????? | | ??????????????????????# =] ##? !! #??????????? | | ??????????????????????# ]] #?? ![ #??????????? | | ??????????????????????# ##### #???#####??????????? | | ??????????????????????# ????#%#??????????????????? | | ????????????????????+? #####s#??????????????????? | | ????????????????????# ?# #??????????????????? | | ????????????????????# ??# #??????????????????? | | ????????????????????+ ?# k ! #??????????????????? | | ?????????????###????# ?# !! #??????????????????? | | ????????????## ## # !! #?x????????????????? | | ????????? x#@ #??????????????????? | | ????????? [ Y #??????????????????? | | ????????? %# ] #??????????????????? | | ????????????## ###### #??????????????????? | | ?????????????## ????????# #??????????????????? | | ????????????????????????# #??????????????????? | | ????????????????????????# #??????????????????? | | ????????????????????????##/####??????????????????? | | ??????????????????????????g#?????????????????????? | | ?????????????????????????? #?????????????????????? | | ??????????????????????????##?????????????????????? | | ?????????????????????????????????????????????????? | | ?????????????????????????????????????????????????? | | ?????????????????????????????????????????????????? | | ?????????????????????????????????????????????????? | | ?????????????????????????????????????????????????? | | ?????????????????????????????????????????????????? | | ?????????????????????????????????????????????????? | | ?????????????????????????????????????????????????? | | ?????????????????????????????????????????????????? | | ?????????????????????????????????????????????????? | | ?????????????????????????????????????????????????? | | ?????????????????????????????????????????????????? | | ?????????????????????????????????????????????????? | | ?????????????????????????????????????????????????? | +----------------------------------------------------+ Best States ------------- Heat Dissipation 28 Energy Generation 10 Energy Capacity 250 Matter Stores 300 Matter Capacity 300 Sight Range 16 Robot Scan Range 14 Terrain Scan Density 10 Evasion (%) 44 Recoil Reduction 2 Item Schematics ----------------- None Robot Schematics ------------------ M-13 Machinist | -10/Materials | Hacked Fabricated ------------ Nothing Alien Tech Used ----------------- None Achievements -------------- None Challenges ------------ None Game ------ Seed ProtonNuclearFemtoactuators Manual? 0 Play Time 00:13:17 Cumulative 56.1 hours Start 2024.06.07 @ 17:49:12 End 2024.06.07 @ 20:07:54 Sessions 4 Manual Loads 0 Difficulty Rogue Special Mode None Game No. 29 Rogue 3 Adventurer 19 Explorer 7 Win Type - Total 2 Types 2/0/0/0/0/0/0/0/0 Lore% 36 Gallery% 50 Achievement% 42 Wizard Run 0 Options --------- Layout 0 ASCII 0 Keyboard 0 Movement Mouse Keybinds 0 Fullscreen 0 Font 24/Smallcaps Map View 74x54 Zoom Use 0% Tactical HUD 1 Map Filters NONE Filters NONE Steam 1 RUN: f2b61b1f-e211-4f42-b7b1-444115b4fbd5